fUST/lending_fUST_20241228
["ID","MTS","AMOUNT","RATE_DAILY","PERIOD"]
[346867479,1735335034134,-544.78,0.00014194,2]
[346867481,1735335034144,-500.0,0.0001422,2]
[346867483,1735335034154,-500.0,0.0001422,2]
[346867485,1735335034163,-500.0,0.0001422,2]
[346867487,1735335034173,-500.0,0.0001422,2]
[346867489,1735335034183,-500.0,0.00014221,2]
[346867491,1735335034193,-500.0,0.00014221,2]
[346867493,1735335034203,-500.0,0.00014221,2]
[346867495,1735335034212,-500.0,0.00014221,2]
[346867497,1735335034222,-500.0,0.00014221,2]
[346867499,1735335034232,-500.0,0.00014221,2]
[346867501,1735335034242,-500.0,0.00014221,2]
[346867503,1735335034251,-500.0,0.00014221,2]
[346867505,1735335034261,-500.0,0.00014221,2]
[346867507,1735335034271,-7480.8,0.00014221,2]
[346867509,1735335034280,-500.0,0.00014221,2]
[346867511,1735335034290,-501.03,0.00014221,2]
[346867513,1735335034299,-151.0,0.00014221,2]
[346867515,1735335034310,-151.0,0.00014221,2]
[346867517,1735335034319,-345.2095247,0.00014227,2]
[346867519,1735335034329,-620.26,0.00014454,2]
[346867521,1735335034339,-230.81,0.00014468,2]
[346867523,1735335034349,-544.78,0.00014468,2]
[346867525,1735335034358,-318.58,0.00014494,2]
[346867527,1735335034369,-500.0,0.00014494,2]
[346867530,1735335034379,-500.0,0.00014494,2]
[346867532,1735335034389,-176.36,0.00014494,2]
[346867534,1735335034399,-500.0,0.00014495,2]
[346867536,1735335034408,-500.0,0.00014495,2]
[346867538,1735335034418,-500.0,0.00014495,2]
[346867540,1735335034428,-500.0,0.00014495,2]
[346867542,1735335034437,-500.0,0.00014495,2]
[346867544,1735335034447,-500.0,0.00014495,2]
[346867546,1735335034456,-541.09,0.00014495,2]
[346867548,1735335034466,-500.0,0.00014495,2]
[346867550,1735335034475,-7480.8,0.00014495,2]
[346867552,1735335034484,-557.68,0.00014495,2]
[346867554,1735335034494,-501.03,0.00014495,2]
[346867556,1735335034504,-151.0,0.00014495,2]
[346867558,1735335034514,-151.0,0.00014495,2]
[346867560,1735335034523,-151.0,0.00014495,2]
[346867562,1735335034533,-620.26,0.00014728,2]
[346867563,1735335034542,-544.78,0.00014742,2]
[346867566,1735335034552,-500.0,0.00014768,2]
[346867568,1735335034562,-500.0,0.00014768,2]
[346867569,1735335034571,-223.0,0.00014768,2]
[346867572,1735335034581,-500.0,0.00014769,2]
[346867573,1735335034590,-500.0,0.00014769,2]
[346867576,1735335034600,-500.0,0.00014769,2]
[346867578,1735335034610,-551.3309867,0.00014769,2]
[346867580,1735335034623,-500.0,0.00014769,2]
[346867581,1735335034633,-500.0,0.00014769,2]
[346867583,1735335034642,-500.0,0.00014769,2]
[346867585,1735335034652,-151.0,0.00014769,2]
[346867587,1735335034661,-151.0,0.00014769,2]
[346867589,1735335034671,-7480.8,0.00014769,2]
[346867602,1735335034785,-501.03,0.00014769,2]
[346867604,1735335034797,-620.26,0.00015002,2]
[346867606,1735335034807,-544.78,0.00015016,2]
[346867609,1735335034817,-159.36,0.00015042,2]
[346867611,1735335034827,-500.0,0.00015042,2]
[346867613,1735335034838,-500.0,0.00015043,2]
[346867614,1735335034847,-317.9326572,0.00015043,2]
[346867616,1735335034856,-500.0,0.00015043,2]
[346867619,1735335034866,-578.13,0.00015043,2]
[346867620,1735335034876,-500.0,0.00015043,2]
[346867623,1735335034886,-500.0,0.00015043,2]
[346867624,1735335034895,-7480.8,0.00015043,2]
[346867627,1735335034905,-501.03,0.00015043,2]
[346867628,1735335034914,-345.2095247,0.00015176,2]
[346867630,1735335034924,-620.26,0.00015276,2]
[346867632,1735335034934,-151.0,0.0001529,2]
[346867634,1735335034944,-151.0,0.0001529,2]
[346867636,1735335034954,-151.0,0.0001529,2]
[346867638,1735335034963,-544.78,0.0001529,2]
[346867640,1735335034973,-151.0,0.0001529,2]
[346867642,1735335034983,-151.0,0.0001529,2]
[346867645,1735335034999,-151.0,0.0001529,2]
[346867648,1735335035012,-500.0,0.00015316,2]
[346867650,1735335035022,-500.0,0.00015317,2]
[346867652,1735335035032,-500.0,0.00015317,2]
[346867654,1735335035043,-500.0,0.00015317,2]
[346867656,1735335035053,-500.0,0.00015317,2]
[346867658,1735335035063,-7480.8,0.00015317,2]
[346867660,1735335035073,-501.03,0.00015317,2]
[346867662,1735335035083,-620.26,0.0001555,2]
[346867664,1735335035094,-544.78,0.00015564,2]
[346867666,1735335035103,-500.0,0.0001559,2]
[346867668,1735335035113,-500.0,0.00015591,2]
[346867670,1735335035123,-500.0,0.00015591,2]
[346867673,1735335035133,-500.0,0.00015591,2]
[346867675,1735335035143,-500.0,0.00015591,2]
[346867677,1735335035153,-7480.8,0.00015591,2]
[346867679,1735335035163,-501.03,0.00015591,2]
[346867681,1735335035172,-165.39945147,0.00015799,2]
[346867683,1735335035182,-620.26,0.00015824,2]
[346867685,1735335035192,-544.78,0.00015838,2]
[346867687,1735335035201,-500.0,0.00015864,2]
[346867689,1735335035211,-500.0,0.00015865,2]
[346867691,1735335035220,-500.0,0.00015865,2]
[346867693,1735335035230,-500.0,0.00015865,2]
[346867695,1735335035240,-2979.40793383,0.00015865,2]
[346867701,1735335035284,-4501.39206617,0.00015865,2]
[346867703,1735335035294,-501.03,0.00015865,2]
[346867705,1735335035303,-620.26,0.00016098,2]
[346867707,1735335035313,-544.78,0.00016112,2]
[346867709,1735335035323,-500.0,0.00016138,2]
[346867711,1735335035332,-500.0,0.00016139,2]
[346867713,1735335035342,-1826.37922213,0.00016139,2]
[346867715,1735335035354,-844.425,0.00016139,2]
[346868013,1735335038484,-500.0,0.00010618,2]
[346868015,1735335038495,-500.0,0.00010618,2]
[346868017,1735335038505,-500.0,0.00013672,2]
[346868019,1735335038514,-500.0,0.00013672,2]
[346868021,1735335038524,-500.0,0.00013672,2]
[346868023,1735335038533,-275.82606774,0.00013672,2]
[346868025,1735335038543,-231.90500357,0.00013672,2]
[346868027,1735335038552,-4809.99577787,0.00016139,2]
[346868029,1735335038561,-501.03,0.00016139,2]
[346868031,1735335038571,-620.26,0.00016372,2]
[346868033,1735335038580,-544.78,0.00016386,2]
[346868035,1735335038589,-500.0,0.00016412,2]
[346868038,1735335038599,-232.69276389,0.00016412,2]
[346868040,1735335038608,-246.24933944,0.00016413,2]
[346868042,1735335038620,-7480.8,0.00016413,2]
[346868044,1735335038629,-501.03,0.00016413,2]
[346868045,1735335038638,-500.0,0.00016438,2]
[346868046,1735335038648,-500.0,0.00016438,2]
[346868047,1735335038659,-500.0,0.00016438,2]
[346868048,1735335038669,-500.0,0.00016438,2]
[346868049,1735335038679,-500.0,0.00016438,2]
[346868050,1735335038688,-427.29185594,0.00016438,2]
[346868052,1735335038698,-500.0,0.00016438,2]
[346868054,1735335038707,-500.0,0.00016438,2]
[346868056,1735335038718,-500.0,0.00016438,2]
[346868058,1735335038727,-500.0,0.00016438,2]
[346868060,1735335038737,-500.0,0.00016438,2]
[346868062,1735335038746,-500.0,0.00016438,2]
[346868064,1735335038759,-500.0,0.00016438,2]
[346868066,1735335038768,-500.0,0.00016438,2]
[346868068,1735335038777,-408.17960163,0.00016438,2]
[346868070,1735335038787,-500.0,0.00016438,2]
[346868072,1735335038796,-500.0,0.00016438,2]
[346868074,1735335038806,-500.0,0.00016438,2]
[346868076,1735335038815,-500.0,0.00016438,2]
[346868078,1735335038826,-500.0,0.00016438,2]
[346868080,1735335038835,-500.0,0.00016438,2]
[346868082,1735335038845,-500.0,0.00016438,2]
[346868084,1735335038854,-500.0,0.00016438,2]
[346868086,1735335038864,-500.0,0.00016438,2]
[346868088,1735335038878,-175.359289,0.000165,2]
[346868090,1735335038887,-175.359289,0.000165,2]
[346868092,1735335038897,-249.776402,0.000165,2]
[346868095,1735335038907,-151.0,0.000165,2]
[346868097,1735335038917,-151.0,0.000165,2]
[346868099,1735335038927,-151.0,0.000165,2]
[346868101,1735335038936,-151.0,0.000165,2]
[346868103,1735335038946,-151.0,0.000165,2]
[346868105,1735335038955,-151.0,0.000165,2]
[346868106,1735335038964,-240.273,0.00016626,2]
[346868109,1735335038973,-620.26,0.00016646,2]
[346868111,1735335038983,-544.78,0.0001666,2]
[346868113,1735335038993,-354.2,0.00016686,2]
[346868115,1735335039003,-7480.8,0.00016687,2]
[346868117,1735335039012,-501.03,0.00016687,2]
[346868119,1735335039022,-151.05477497,0.00016719,2]
[346868120,1735335039031,-620.43758734,0.0001692,2]
[346868123,1735335039041,-544.78,0.00016934,2]
[346868125,1735335039052,-7480.8,0.00016961,2]
[346868127,1735335039062,-501.03,0.00016961,2]
[346868129,1735335039071,-31418.69,0.00017,2]
[346868131,1735335039081,-151.0,0.00017,2]
[346868133,1735335039090,-151.0,0.00017,2]
[346868135,1735335039099,-151.0,0.00017,2]
[346868137,1735335039108,-151.0,0.00017,2]
[346868139,1735335039118,-151.0,0.00017,2]
[346868141,1735335039127,-151.0,0.00017,2]
[346868143,1735335039135,-1089.85125517,0.00017,2]
[346868145,1735335039145,-544.78,0.00017208,2]
[346868147,1735335039155,-151.0,0.00017235,2]
[346868149,1735335039164,-151.0,0.00017235,2]
[346868151,1735335039174,-7480.8,0.00017235,2]
[346868153,1735335039183,-501.03,0.00017235,2]
[346868155,1735335039193,-544.78,0.00017482,2]
[346868157,1735335039202,-7480.8,0.00017509,2]
[346868159,1735335039211,-501.03,0.00017509,2]
[346868161,1735335039220,-544.78,0.00017756,2]
[346868163,1735335039229,-7480.94685608,0.00017783,2]
[346868165,1735335039238,-501.07,0.00017783,2]
[346868167,1735335039248,-500.0,0.00017808,4]
[346868169,1735335039257,-151.0,0.00017838,5]
[346868171,1735335039267,-237.33,0.00018,2]
[346868173,1735335039276,-237.33,0.00018,2]
[346868175,1735335039286,-237.33,0.00018,2]
[346868177,1735335039295,-430.36,0.00018,2]
[346868179,1735335039304,-15225.78570108,0.00018,2]
[346868181,1735335039314,-165.39945147,0.00018009,2]
[346868183,1735335039324,-544.78,0.0001803,2]
[346868185,1735335039333,-151.0,0.00018188,5]
[346868187,1735335039343,-1999.0,0.00018246,5]
[346868189,1735335039352,-1999.0,0.00018246,5]
[346868191,1735335039362,-544.78,0.00018304,2]
[346868193,1735335039372,-151.0,0.00018539,6]
[346868195,1735335039381,-544.78,0.00018578,2]
[346868197,1735335039391,-151.0,0.000188,2]
[346868199,1735335039400,-151.0,0.000188,2]
[346868201,1735335039409,-151.0,0.000188,2]
[346868203,1735335039419,-544.85454138,0.00018852,2]
[346868205,1735335039428,-151.0,0.00018852,2]
[346868207,1735335039437,-151.0,0.00018852,2]
[346868209,1735335039447,-151.0,0.00018852,2]
[346868211,1735335039458,-151.0,0.00018889,6]
[346868213,1735335039467,-2513.8961934,0.000189,2]
[346868215,1735335039476,-302.57643837,0.00019,2]
[346868217,1735335039485,-82997.09104448,0.00019,2]
[346868219,1735335039495,-332.58177188,0.00019,2]
[346868221,1735335039504,-2500.0,0.00019178,2]
[346868234,1735335039608,-1498.7,0.00019178,2]
[346868236,1735335039618,-1498.7,0.00019178,2]
[346868238,1735335039627,-1498.7,0.00019178,2]
[346868240,1735335039637,-1498.7,0.00019178,2]
[346868242,1735335039646,-1498.7,0.00019178,2]
[346868244,1735335039655,-1498.7,0.00019178,2]
[346868246,1735335039664,-2130.13333964,0.00019178,2]
[346868248,1735335039674,-500.0,0.00019178,6]
[346868250,1735335039683,-14247.5620923,0.00019178,11]
[346868252,1735335039693,-302.57643837,0.0001919,2]
[346868254,1735335039704,-171471.463133,0.000192,2]
[346868256,1735335039714,-10913.37,0.000192,2]
[346868258,1735335039725,-26357.55,0.000192,2]
[346868260,1735335039734,-151.0,0.000192,2]
[346868262,1735335039743,-151.0,0.00019239,6]
[346868264,1735335039756,-680.006,0.0001928,2]
[346868266,1735335039765,-4210.10278655,0.00019324,2]
[346868268,1735335039776,-4993.2322451,0.00019324,2]
[346868270,1735335039786,-151.0,0.00019324,2]
[346868272,1735335039797,-151.0,0.00019324,2]
[346868275,1735335039807,-302.57643837,0.0001938,2]
[346868277,1735335039817,-302.57643837,0.0001957,2]
[346868278,1735335039828,-151.0,0.00019589,7]
[346868280,1735335039838,-1200.0,0.00019622,2]
[346868282,1735335039847,-302.57643837,0.0001976,2]
[346868285,1735335039857,-4354.02224899,0.0001978,7]
[346868286,1735335039867,-151.0,0.00019939,7]
[346868288,1735335039876,-453.86465756,0.0001995,4]
[346868291,1735335039885,-40727.34645118,0.0001999,2]
[346868292,1735335039894,-31418.69,0.0002,2]
[346868294,1735335039904,-151.0,0.0002,2]
[346868296,1735335039914,-151.0,0.0002,2]
[346868299,1735335039924,-151.0,0.0002,2]
[346868301,1735335039933,-151.0,0.0002,2]
[346868303,1735335039943,-151.0,0.0002,2]
[346868306,1735335039954,-175.359289,0.0002,2]
[346868309,1735335039963,-175.359289,0.0002,2]
[346868312,1735335039973,-10382.26819221,0.00020061,2]
[346868314,1735335039984,-421.6263519,0.00020086,2]
[346868316,1735335039993,-2097.89,0.00020099,2]
[346868318,1735335040003,-454.77148,0.0002014,4]
[346868320,1735335040012,-352.194829,0.00020164,2]
[346868322,1735335040021,-195.530727,0.00020175,2]
[346868324,1735335040030,-195.530727,0.00020175,2]
[346868326,1735335040040,-151.0,0.00020175,2]
[346868328,1735335040049,-2110.0,0.00020185,2]
[346868330,1735335040058,-534.0,0.00020185,2]
[346868332,1735335040067,-2360.0,0.00020185,2]
[346868334,1735335040077,-394.0,0.00020185,2]
[346868336,1735335040086,-500.0,0.00020188,2]
[346868338,1735335040096,-500.0,0.00020188,2]
[346868340,1735335040105,-151.0,0.00020188,2]
[346868343,1735335040114,-151.0,0.00020188,2]
[346868345,1735335040125,-500.0,0.00020188,2]
[346868347,1735335040135,-1300.62,0.00020188,2]
[346868349,1735335040144,-155.0875379,0.00020192,2]
[346868351,1735335040154,-352.3665978,0.00020192,2]
[346868353,1735335040164,-426.6778935,0.00020192,2]
[346868355,1735335040174,-352.3665978,0.00020192,2]
[346868357,1735335040184,-352.3665978,0.00020192,2]
[346868359,1735335040193,-19078.2465004,0.000202,2]
[346868361,1735335040203,-1306.599999,0.000202,2]
[346868363,1735335040212,-2000.0,0.000202,2]
[346868365,1735335040221,-151.0,0.000202,2]
[346868367,1735335040231,-151.0,0.000202,2]
[346868369,1735335040240,-151.0,0.000202,2]
[346868371,1735335040249,-151.0,0.000202,2]
[346868374,1735335040259,-151.0,0.000202,2]
[346868376,1735335040268,-151.0,0.000202,2]
[346868377,1735335040278,-151.0,0.000202,2]
[346868380,1735335040288,-151.0,0.00020214,2]
[346868382,1735335040297,-227.367421,0.00020214,2]
[346868384,1735335040307,-165.39945147,0.00020218,2]
[346868386,1735335040315,-500.09226137,0.00020273,2]
[346868388,1735335040325,-499.0,0.00020273,2]
[346868390,1735335040334,-170.728822,0.00020275,2]
[346868392,1735335040343,-170.728822,0.00020275,2]
[346868394,1735335040352,-170.728822,0.00020275,2]
[346868396,1735335040361,-170.728822,0.00020275,2]
[346868398,1735335040374,-170.728822,0.00020275,2]
[346868400,1735335040383,-170.728822,0.00020275,2]
[346868402,1735335040394,-170.728822,0.00020275,2]
[346868404,1735335040404,-170.728822,0.00020275,2]
[346868406,1735335040413,-170.728822,0.00020275,2]
[346868408,1735335040422,-170.728822,0.00020275,2]
[346868410,1735335040432,-170.728822,0.00020275,2]
[346868412,1735335040441,-170.728822,0.00020275,2]
[346868414,1735335040451,-170.728822,0.00020275,2]
[346868416,1735335040460,-170.728822,0.00020275,2]
[346868418,1735335040469,-170.728822,0.00020275,2]
[346868420,1735335040479,-170.728822,0.00020275,2]
[346868422,1735335040488,-170.728822,0.00020275,2]
[346868423,1735335040497,-170.728822,0.00020275,2]
[346868424,1735335040507,-170.72882,0.00020275,2]
[346868425,1735335040516,-219.51814,0.00020275,2]
[346868426,1735335040526,-219.51814,0.00020275,2]
[346868427,1735335040535,-219.51814,0.00020275,2]
[346868428,1735335040544,-219.51814,0.00020275,2]
[346868429,1735335040554,-219.51814,0.00020275,2]
[346868430,1735335040563,-219.51814,0.00020275,2]
[346868431,1735335040571,-219.51814,0.00020275,2]
[346868432,1735335040580,-219.51814,0.00020275,2]
[346868433,1735335040589,-219.51814,0.00020275,2]
[346868434,1735335040599,-219.51814,0.00020275,2]
[346868435,1735335040608,-219.51814,0.00020275,2]
[346868436,1735335040619,-219.51814,0.00020275,2]
[346868437,1735335040629,-219.51814,0.00020275,2]
[346868438,1735335040638,-219.51814,0.00020275,2]
[346868439,1735335040648,-219.51814,0.00020275,2]
[346868440,1735335040659,-219.51814,0.00020275,2]
[346868441,1735335040669,-219.51814,0.00020275,2]
[346868442,1735335040679,-219.51814,0.00020275,2]
[346868443,1735335040689,-219.51814,0.00020275,2]
[346868444,1735335040698,-219.51814,0.00020275,2]
[346868445,1735335040708,-151.0,0.00020275,2]
[346868446,1735335040718,-151.0,0.00020289,2]
[346868447,1735335040727,-151.0,0.00020289,2]
[346868448,1735335040736,-151.0,0.00020289,2]
[346868449,1735335040746,-151.0,0.00020289,2]
[346868450,1735335040758,-151.0,0.00020289,2]
[346868451,1735335040767,-151.0,0.00020289,2]
[346868452,1735335040776,-151.0,0.00020289,2]
[346868453,1735335040785,-151.0,0.00020289,2]
[346868454,1735335040797,-151.0,0.00020289,2]
[346868455,1735335040806,-151.0,0.00020289,2]
[346868456,1735335040815,-151.0,0.00020289,2]
[346868457,1735335040826,-151.0,0.00020289,2]
[346868458,1735335040835,-150.23,0.00020289,2]
[346868459,1735335040844,-151.0,0.00020289,7]
[346868460,1735335040854,-165.337159,0.00020289,10]
[346868461,1735335040864,-500.0,0.00020289,2]
[346868462,1735335040875,-150.23,0.00020289,2]
[346868463,1735335040884,-151.0,0.00020299,2]
[346868465,1735335040894,-151.0,0.00020299,2]
[346868467,1735335040903,-151.0,0.00020299,2]
[346868469,1735335040912,-194.829803,0.00020299,2]
[346868471,1735335040922,-151.0,0.00020299,2]
[346868473,1735335040931,-187.330076,0.00020299,2]
[346868475,1735335040943,-195.530727,0.00020299,2]
[346868477,1735335040952,-195.530727,0.00020299,2]
[346868479,1735335040961,-195.530727,0.00020299,2]
[346868481,1735335040970,-195.530727,0.00020299,2]
[346868483,1735335040979,-195.530727,0.00020299,2]
[346868485,1735335040988,-195.530727,0.00020299,2]
[346868487,1735335040997,-195.530727,0.00020299,2]
[346868489,1735335041007,-195.530727,0.00020299,2]
[346868491,1735335041016,-195.530727,0.00020299,2]
[346868493,1735335041025,-195.530727,0.00020299,2]
[346868494,1735335041034,-195.530727,0.00020299,2]
[346868496,1735335041043,-195.530727,0.00020299,2]
[346868499,1735335041053,-195.530727,0.00020299,2]
[346868501,1735335041063,-195.530727,0.00020299,2]
[346868503,1735335041073,-195.530727,0.00020299,2]
[346868504,1735335041082,-195.530727,0.00020299,2]
[346868507,1735335041092,-195.530727,0.00020299,2]
[346868508,1735335041101,-195.530727,0.00020299,2]
[346868511,1735335041110,-151.0,0.00020299,2]
[346868513,1735335041120,-151.0,0.00020299,2]
[346868515,1735335041129,-151.69787,0.00020299,2]
[346868517,1735335041139,-151.0,0.00020299,2]
[346868519,1735335041148,-151.0,0.00020299,2]
[346868521,1735335041157,-151.0,0.00020299,2]
[346868523,1735335041167,-151.0,0.00020299,2]
[346868525,1735335041177,-151.0,0.00020299,2]
[346868527,1735335041186,-151.0,0.00020299,2]
[346868529,1735335041195,-151.0,0.00020299,2]
[346868531,1735335041205,-151.0,0.00020299,2]
[346868533,1735335041214,-151.0,0.00020299,2]
[346868535,1735335041223,-151.0,0.00020299,2]
[346868537,1735335041232,-151.0,0.00020299,2]
[346868539,1735335041242,-151.0,0.00020299,2]
[346868541,1735335041251,-275.26738,0.00020299,2]
[346868542,1735335041260,-151.0,0.00020299,2]
[346868545,1735335041269,-151.0,0.00020299,2]
[346868546,1735335041278,-151.0,0.00020299,2]
[346868548,1735335041287,-151.0,0.00020299,2]
[346868551,1735335041296,-151.0,0.00020299,2]
[346868553,1735335041307,-151.0,0.00020299,2]
[346868555,1735335041315,-151.0,0.00020299,2]
[346868557,1735335041324,-151.0,0.00020299,2]
[346868559,1735335041334,-151.0,0.00020299,2]
[346868561,1735335041343,-151.0,0.00020299,2]
[346868562,1735335041352,-288.378363,0.00020299,2]
[346868564,1735335041362,-151.0,0.00020299,2]
[346868567,1735335041372,-151.0,0.00020299,2]
[346868568,1735335041381,-151.0,0.00020299,2]
[346868571,1735335041391,-151.0,0.00020299,2]
[346868572,1735335041400,-151.0,0.00020299,2]
[346868574,1735335041411,-151.0,0.00020299,2]
[346868576,1735335041420,-151.0,0.00020299,2]
[346868578,1735335041430,-151.0,0.00020299,2]
[346868580,1735335041439,-151.0,0.00020299,2]
[346868582,1735335041448,-151.0,0.00020299,2]
[346868584,1735335041457,-151.0,0.00020299,2]
[346868586,1735335041466,-151.0,0.00020299,2]
[346868588,1735335041476,-231.361111,0.00020299,2]
[346868598,1735335041561,-175.359289,0.00020299,2]
[346868600,1735335041571,-175.359289,0.00020299,2]
[346868602,1735335041580,-175.359289,0.00020299,2]
[346868604,1735335041589,-175.359289,0.00020299,2]
[346868606,1735335041598,-175.359289,0.00020299,2]
[346868609,1735335041608,-175.359289,0.00020299,2]
[346868611,1735335041617,-175.359289,0.00020299,2]
[346868613,1735335041627,-175.359289,0.00020299,2]
[346868615,1735335041636,-175.359289,0.00020299,2]
[346868617,1735335041646,-175.359289,0.00020299,2]
[346868619,1735335041655,-175.359289,0.00020299,2]
[346868621,1735335041663,-175.359289,0.00020299,2]
[346868622,1735335041673,-175.359289,0.00020299,2]
[346868625,1735335041682,-175.359289,0.00020299,2]
[346868626,1735335041692,-175.359289,0.00020299,2]
[346868629,1735335041701,-175.359284,0.00020299,2]
[346868631,1735335041711,-151.0,0.00020314,2]
[346868632,1735335041720,-151.0,0.00020314,2]
[346868634,1735335041729,-151.0,0.00020314,2]
[346868636,1735335041738,-151.0,0.00020314,2]
[346868638,1735335041749,-151.0,0.00020314,2]
[346868640,1735335041760,-151.0,0.00020314,2]
[346868642,1735335041770,-151.0,0.00020314,2]
[346868644,1735335041779,-151.0,0.00020314,2]
[346868646,1735335041789,-151.0,0.00020314,2]
[346868648,1735335041799,-151.0,0.00020314,2]
[346868650,1735335041808,-289.567458,0.00020314,2]
[346868652,1735335041817,-151.0,0.00020314,2]
[346868654,1735335041826,-151.0,0.00020314,2]
[346868656,1735335041837,-151.0,0.00020314,2]
[346868658,1735335041846,-151.0,0.00020314,2]
[346868660,1735335041855,-151.0,0.00020314,2]
[346868662,1735335041865,-151.0,0.00020314,2]
[346868664,1735335041875,-151.0,0.00020314,2]
[346868666,1735335041884,-151.0,0.00020314,2]
[346868668,1735335041893,-151.0,0.00020314,2]
[346868670,1735335041903,-242.478894,0.00020314,2]
[346868672,1735335041912,-16752.64810622,0.00020318,2]
[346868674,1735335041921,-302851.96810455,0.00020318,2]
[346868677,1735335041931,-177039.32449231,0.00020318,10]
[346868876,1735335045899,-6760.0,0.00020318,10]
[346868878,1735335045911,-4557.1301025,0.00020318,10]
[346868880,1735335045923,-261925.20481305,0.00020318,10]
[346868887,1735335045986,-500.0,0.00010892,2]
[346868890,1735335045995,-500.0,0.00011166,2]
[346868892,1735335046005,-15714.00123277,0.00020318,10]
[346868894,1735335046019,-27647.68414026,0.00020318,10]
[346868896,1735335046030,-16062.93036091,0.00020318,10]
[346868898,1735335046041,-4649.95,0.00020318,10]
[346868901,1735335046053,-4806.35,0.00020318,10]
[346868903,1735335046071,-444.67226257,0.00013397,2]
[346869068,1735335047732,-90.65860486,0.0001144,2]
[346869072,1735335047771,-409.34139514,0.0001144,2]
[346869074,1735335047781,-120.65860486,0.00011714,2]
[346869076,1735335047793,-315.929,0.00011714,2]
[346869078,1735335047805,-63.41239514,0.00011714,2]
[346869080,1735335047815,-167.17,0.00011988,2]
[346869082,1735335047825,-55.32773743,0.00013397,2]
[346869083,1735335047835,-39.64571815,0.00013671,2]
[346869093,1735335047936,-224.0593834,0.00010618,2]
[346869095,1735335047945,-406.74428185,0.00013671,2]
[346869097,1735335047955,-1200.0,0.00020318,2]
[346869099,1735335047964,-30262.84082436,0.00020318,10]
[346870241,1735335294382,24900.0,9.771e-05,2]
[346870243,1735335366544,161.3218,9.771e-05,2]
[346870244,1735335366634,161.3218,9.82e-05,2]
[346870245,1735335524871,500.0,0.00010098,2]
[346870246,1735335534075,-500.0,0.000102,2]
[346870247,1735335534103,-300.0,0.00010617,2]
[346870248,1735335534132,-500.0,0.00010618,2]
[346870249,1735335534160,-500.0,0.00010618,2]
[346870250,1735335534187,-500.0,0.00010618,2]
[346870251,1735335534219,-464.0,0.00010618,2]
[346870252,1735335534235,-36.0,0.00010618,2]
[346870253,1735335534245,-464.0,0.00010618,2]
[346870254,1735335534257,-36.0,0.00010618,2]
[346870255,1735335534267,-264.0,0.00010618,2]
[346870256,1735335534279,-236.0,0.00010618,2]
[346870257,1735335534288,-264.0,0.00010618,2]
[346870258,1735335534300,-236.0,0.00010618,2]
[346870259,1735335534309,-264.0,0.00010618,2]
[346870260,1735335534321,-236.0,0.00010618,2]
[346870261,1735335534331,-264.0,0.00010618,2]
[346870262,1735335534344,-236.0,0.00010618,2]
[346870263,1735335534355,-264.0,0.00010618,2]
[346870264,1735335686138,645.9114144,9.84e-05,2]
[346870265,1735335863181,991.0053927,9.707e-05,2]